[Event "3rd Memorial Warakomska 2019"]
[Site "Suwalki"]
[Date "2019.08.09"]
[Round "6.38"]
[White "Jankowiak, Tomasz"]
[Black "Kubicka, Anna"]
[Result "1/2-1/2"]
[ECO "B51"]
[WhiteElo "2104"]
[BlackElo "2202"]
[Annotator "NA"]
[PlyCount "254"]
[EventDate "2019.08.05"]
[EventType "swiss"]
[EventCountry "POL"]
[SourceTitle "playchess.com"]
[Source "ChessBase"]
[SourceQuality "1"]
[TimeControl "40/5400+30:1800+30"]

1. e4 {[%emt 0:00:00]} c5 {[%emt 0:00:00]} 2. Nf3 {[%emt 0:00:00]} d6 {[%emt 0:00:00]} 3. Bb5+ {[%emt 0:00:00]} Nd7 {[%emt 0:00:01]} 4. d4 {[%emt 0:00:00]} cxd4 {[%emt 0:00:05]} 5. Qxd4 {[%emt 0:00:00]} a6 {[%emt 0:00:06]} 6. Bxd7+ {[%emt 0:00:00]} Bxd7 {[%emt 0:00:05]} 7. O-O {[%emt 0:00:05]} Rc8 {[%emt 0:00:05]} 8. Nc3 {[%emt 0:00:20]} e5 {[%emt 0:00:17]} 9. Qd3 {[%emt 0:00:10]} Be7 {[%emt 0:00:30]} 10. h3 {[%emt 0:19:02]} h6 {[%emt 0:00:05]} 11. Nd2 {[%emt 0:01:05]} Qc7 {[%emt 0:01:13]} 12. Rd1 {[%emt 0:02:29]} Nf6 {[%emt 0:00:45]} 13. a4 {[%emt 0:00:06]} O-O {[%emt 0:00:19]} 14. Nf1 {[%emt 0:00:18]} Be6 {[%emt 0:06:34]} 15. Ne3 {[%emt 0:02:13]} Qc5 {[%emt 0:00:37]} 16. Qe2 {[%emt 0:02:21]} Bd8 {[%emt 0:05:54]} 17. Qf3 {[%emt 0:05:46]} Re8 {[%emt 0:20:43]} 18. Nf5 {[%emt 0:11:01]} Bxf5 {[%emt 0:09:39]} 19. Qxf5 {[%emt 0:02:02]} Re6 {[%emt 0:03:33]} 20. Rd3 {[%emt 0:19:07]} g6 {[%emt 0:24:55]} 21. Rg3 {[%emt 0:05:44]} Nh7 {[%emt 0:04:21]} 22. Bxh6 {[%emt 0:11:07]} Bh4 {[%emt 0:02:52]} 23. Rg4 {[%emt 0:01:40]} Rf6 {[%emt 0:02:29]} 24. Be3 {[%emt 0:00:27]} Rxf5 {[%emt 0:04:16]} 25. Bxc5 {[%emt 0:00:11]} Rh5 {[%emt 0:00:13]} 26. Bxd6 {[%emt 0:06:10]} Nf6 {[%emt 0:01:10]} 27. Rxh4 {[%emt 0:06:50]} Rxh4 {[%emt 0:00:13]} 28. Be7 {[%emt 0:00:05]} Kg7 {[%emt 0:01:22]} 29. Nd5 {[%emt 0:00:11]} Nxd5 {[%emt 0:00:07]} 30. Bxh4 {[%emt 0:00:26]} Nf4 {[%emt 0:01:09]} 31. c3 {[%emt 0:00:28]} Nd3 {[%emt 0:00:57]} 32. Rb1 {[%emt 0:01:16]} Rc4 {[%emt 0:00:15]} 33. f3 {[%emt 0:01:08]} Rxa4 {[%emt 0:00:36]} 34. b3 {[%emt 0:01:33]} Ra2 {[%emt 0:00:31]} 35. Bg3 {[%emt 0:00:58]} Rc2 {[%emt 0:00:29]} 36. c4 {[%emt 0:00:53]} Kf6 {[%emt 0:00:13]} 37. Rd1 {[%emt 0:01:27]} Rc3 {[%emt 0:00:08]} 38. b4 {[%emt 0:00:11]} Ke6 {[%emt 0:03:47]} 39. b5 {[%emt 0:00:57]} axb5 {[%emt 0:02:38]} 40. cxb5 {[%emt 0:00:00]} Rb3 {[%emt 0:00:00]} 41. Kf1 {[%emt 0:04:22]} f6 {[%emt 0:06:54]} 42. Ke2 {[%emt 0:01:31]} Nc5 {[%emt 0:01:34]} 43. Bf2 {[%emt 0:03:42]} Na4 {[%emt 0:03:16]} 44. Ra1 {[%emt 0:01:08]} Nc3+ {[%emt 0:01:29]} 45. Kf1 {[%emt 0:05:02]} Nxb5 {[%emt 0:00:50]} 46. Ra8 {[%emt 0:01:07]} Rb1+ {[%emt 0:00:31]} 47. Ke2 {[%emt 0:01:15]} Rb2+ {[%emt 0:00:31]} 48. Kf1 {[%emt 0:00:17]} Nc3 {[%emt 0:04:23]} 49. g3 {[%emt 0:01:39]} Rb1+ {[%emt 0:02:01]} 50. Kg2 {[%emt 0:00:16]} Nd1 {[%emt 0:01:15]} 51. Bg1 {[%emt 0:00:13]} Rb2+ {[%emt 0:00:12]} 52. Kf1 {[%emt 0:00:22]} Nc3 {[%emt 0:00:27]} 53. h4 {[%emt 0:01:35]} Ne2 {[%emt 0:09:14]} 54. Bf2 {[%emt 0:00:31]} Nc1 {[%emt 0:01:06]} 55. Re8+ {[%emt 0:01:45]} Kf7 {[%emt 0:00:03]} 56. Rc8 {[%emt 0:00:26]} Nd3 {[%emt 0:05:45]} 57. Be3 {[%emt 0:00:25]} Rb3 {[%emt 0:02:04]} 58. Ke2 {[%emt 0:01:39]} Nb2 {[%emt 0:00:50]} 59. Rc7+ {[%emt 0:00:15]} Ke6 {[%emt 0:01:44]} 60. g4 {[%emt 0:04:45]} Na4 {[%emt 0:00:43]} 61. h5 {[%emt 0:01:06]} gxh5 {[%emt 0:00:03]} 62. gxh5 {[%emt 0:00:04]} Nc3+ {[%emt 0:00:56]} 63. Kd2 {[%emt 0:00:53]} Nb1+ {[%emt 0:00:32]} 64. Ke2 {[%emt 0:01:31]} Nc3+ {[%emt 0:00:03]} 65. Kf1 {[%emt 0:06:56]} Nb5 {[%emt 0:00:26]} 66. Rxb7 {[%emt 0:01:34]} Rxe3 {[%emt 0:00:04]} 67. h6 {[%emt 0:00:46]} Rxf3+ {[%emt 0:00:59]} 68. Kg2 {[%emt 0:00:03]} Rf4 {[%emt 0:00:07]} 69. h7 {[%emt 0:00:39]} Rh4 {[%emt 0:00:46]} 70. Rxb5 {[%emt 0:00:11]} Rxh7 {[%emt 0:00:07]} 71. Rb6+ {[%emt 0:00:13]} Kf7 {[%emt 0:00:03]} 72. Kg3 {[%emt 0:00:45]} Kg6 {[%emt 0:00:18]} 73. Ra6 {[%emt 0:00:27]} Rb7 {[%emt 0:00:05]} 74. Ra3 {[%emt 0:00:37]} Rb4 {[%emt 0:00:24]} 75. Kf3 {[%emt 0:00:09]} Kg5 {[%emt 0:00:03]} 76. Rc3 {[%emt 0:00:13]} Rb1 {[%emt 0:00:10]} 77. Rc8 {[%emt 0:00:18]} Rb3+ {[%emt 0:00:04]} 78. Ke2 {[%emt 0:00:58]} Kf4 {[%emt 0:00:06]} 79. Rc6 {[%emt 0:00:02]} Kxe4 {[%emt 0:00:28]} 80. Rxf6 {[%emt 0:00:04]} Rb2+ {[%emt 0:00:01]} 81. Kf1 {[%emt 0:01:03]} Ke3 {[%emt 0:00:23]} 82. Ra6 {[%emt 0:00:47]} Rb1+ {[%emt 0:00:24]} 83. Kg2 {[%emt 0:00:09]} Rd1 {[%emt 0:00:24]} 84. Ra3+ {[%emt 0:00:37]} Rd3 {[%emt 0:00:11]} 85. Ra1 {[%emt 0:00:07]} Rd2+ {[%emt 0:01:12]} 86. Kf1 {[%emt 0:00:16]} e4 {[%emt 0:00:59]} 87. Ke1 {[%emt 0:00:41]} Rb2 {[%emt 0:02:35]} 88. Ra3+ {[%emt 0:00:08]} Kf4 {[%emt 0:00:06]} 89. Rc3 {[%emt 0:00:09]} Ra2 {[%emt 0:00:30]} 90. Rb3 {[%emt 0:00:04]} Ra1+ {[%emt 0:00:05]} 91. Ke2 {[%emt 0:00:05]} Rh1 {[%emt 0:00:20]} 92. Ra3 {[%emt 0:00:06]} Rh2+ {[%emt 0:00:27]} 93. Ke1 {[%emt 0:00:04]} Rc2 {[%emt 0:00:09]} 94. Rb3 {[%emt 0:00:05]} Ke5 {[%emt 0:00:05]} 95. Ra3 {[%emt 0:00:12]} Rb2 {[%emt 0:00:11]} 96. Rc3 {[%emt 0:00:11]} Kd4 {[%emt 0:00:30]} 97. Rh3 {[%emt 0:00:05]} Rc2 {[%emt 0:00:36]} 98. Rg3 {[%emt 0:00:04]} Rc5 {[%emt 0:01:21]} 99. Ke2 {[%emt 0:00:11]} Ra5 {[%emt 0:00:15]} 100. Rh3 {[%emt 0:00:05]} Ra2+ {[%emt 0:00:09]} 101. Ke1 {[%emt 0:00:04]} Kc4 {[%emt 0:02:02]} 102. Rg3 {[%emt 0:00:08]} Ra5 {[%emt 0:00:40]} 103. Ke2 {[%emt 0:00:07]} Kd4 {[%emt 0:01:04]} 104. Rh3 {[%emt 0:00:07]} Ra6 {[%emt 0:00:08]} 105. Rg3 {[%emt 0:00:06]} Rh6 {[%emt 0:00:47]} 106. Ra3 {[%emt 0:00:06]} Rh2+ {[%emt 0:00:17]} 107. Ke1 {[%emt 0:00:04]} Ke5 {[%emt 0:00:27]} 108. Rb3 {[%emt 0:00:06]} Kf4 {[%emt 0:00:02]} 109. Ra3 {[%emt 0:00:04]} Rg2 {[%emt 0:00:17]} 110. Rb3 {[%emt 0:00:06]} Rg5 {[%emt 0:03:06]} 111. Ra3 {[%emt 0:00:05]} Rb5 {[%emt 0:00:24]} 112. Rc3 {[%emt 0:00:06]} Rf5 {[%emt 0:00:32]} 113. Ke2 {[%emt 0:00:09]} Kg4 {[%emt 0:00:25]} 114. Ra3 {[%emt 0:00:26]} Rh5 {[%emt 0:00:26]} 115. Rb3 {[%emt 0:00:12]} Rh2+ {[%emt 0:00:06]} 116. Ke1 {[%emt 0:00:04]} Rg2 {[%emt 0:00:20]} 117. Ra3 {[%emt 0:00:15]} Rg3 {[%emt 0:00:12]} 118. Rxg3+ {[%emt 0:00:16]} Kxg3 {[%emt 0:00:03]} 119. Ke2 {[%emt 0:00:06]} Kf4 {[%emt 0:00:04]} 120. Kf2 {[%emt 0:00:03]} e3+ {[%emt 0:00:03]} 121. Ke2 {[%emt 0:00:04]} Ke4 {[%emt 0:00:13]} 122. Ke1 {[%emt 0:00:07]} Kf3 {[%emt 0:00:05]} 123. Kf1 {[%emt 0:00:02]} Kg4 {[%emt 0:00:09]} 124. Ke2 {[%emt 0:00:05]} Kf4 {[%emt 0:00:02]} 125. Ke1 {[%emt 0:00:03]} Kf3 {[%emt 0:00:04]} 126. Kf1 {[%emt 0:00:03]} e2+ {[%emt 0:00:03]} 127. Ke1 {[%emt 0:00:03]} Ke3 {[%emt 0:00:04]} 1/2-1/2

[Event "3rd Memorial Warakomska 2019"]
[Site "Suwalki"]
[Date "2019.08.09"]
[Round "6.39"]
[White "Antolak, Julia"]
[Black "Luba, Lukasz"]
[Result "1/2-1/2"]
[ECO "C41"]
[WhiteElo "2258"]
[BlackElo "2177"]
[Annotator "NA"]
[PlyCount "133"]
[EventDate "2019.08.05"]
[EventType "swiss"]
[EventCountry "POL"]
[SourceTitle "playchess.com"]
[Source "ChessBase"]
[SourceQuality "1"]
[TimeControl "40/5400+30:1800+30"]

1. e4 {[%emt 0:00:00]} e5 {[%emt 0:00:52]} 2. Nf3 {[%emt 0:00:00]} d6 {[%emt 0:01:10]} 3. d4 {[%emt 0:03:39]} exd4 {[%emt 0:03:10]} 4. Qxd4 {[%emt 0:02:21]} Nf6 {[%emt 0:03:58]} 5. Nc3 {[%emt 0:02:06]} Nc6 {[%emt 0:04:17]} 6. Qe3 {[%emt 0:01:26]} Be7 {[%emt 0:07:45]} 7. Bd2 {[%emt 0:01:10]} O-O {[%emt 0:03:39]} 8. O-O-O {[%emt 0:02:51]} Re8 {[%emt 0:01:59]} 9. Bc4 {[%emt 0:09:55]} Ne5 {[%emt 0:10:23]} 10. Nxe5 {[%emt 0:05:39]} dxe5 {[%emt 0:00:07]} 11. Qg3 {[%emt 0:03:43]} Nd7 {[%emt 0:20:27]} 12. f4 {[%emt 0:04:33]} Bh4 {[%emt 0:04:19]} 13. Qf3 {[%emt 0:03:28]} c6 {[%emt 0:00:49]} 14. Rhf1 {[%emt 0:02:57]} Qe7 {[%emt 0:01:32]} 15. g4 {[%emt 0:11:14]} exf4 {[%emt 0:06:55]} 16. Bxf4 {[%emt 0:04:42]} Bg5 {[%emt 0:00:20]} 17. Bxg5 {[%emt 0:05:09]} Qxg5+ {[%emt 0:00:07]} 18. Kb1 {[%emt 0:00:30]} Nf6 {[%emt 0:00:26]} 19. h3 {[%emt 0:00:51]} Be6 {[%emt 0:00:15]} 20. Bxe6 {[%emt 0:01:45]} Rxe6 {[%emt 0:02:59]} 21. Rd3 {[%emt 0:04:00]} Rae8 {[%emt 0:00:53]} 22. Rfd1 {[%emt 0:00:41]} h5 {[%emt 0:00:07]} 23. gxh5 {[%emt 0:03:22]} Nxe4 {[%emt 0:01:39]} 24. Nxe4 {[%emt 0:00:37]} Rxe4 {[%emt 0:00:06]} 25. Rd7 {[%emt 0:01:54]} R4e7 {[%emt 0:03:33]} 26. a3 {[%emt 0:02:36]} Kh7 {[%emt 0:05:12]} 27. Qd3+ {[%emt 0:02:28]} Kh6 {[%emt 0:02:26]} 28. Rd4 {[%emt 0:04:56]} Qxh5 {[%emt 0:01:51]} 29. Qc4 {[%emt 0:04:12]} Re4 {[%emt 0:01:08]} 30. Rg1 {[%emt 0:00:51]} Qf5 {[%emt 0:03:59]} 31. Qc3 {[%emt 0:03:07]} Qf2 {[%emt 0:02:02]} 32. Rdd1 {[%emt 0:01:48]} f6 {[%emt 0:02:06]} 33. Ka2 {[%emt 0:02:08]} Qf5 {[%emt 0:01:18]} 34. Qg3 {[%emt 0:00:35]} g5 {[%emt 0:00:17]} 35. Rgf1 {[%emt 0:01:41]} Qg6 {[%emt 0:00:52]} 36. Rd7 {[%emt 0:01:52]} R4e7 {[%emt 0:00:19]} 37. Rxe7 {[%emt 0:00:59]} Rxe7 {[%emt 0:00:11]} 38. h4 {[%emt 0:00:07]} g4 {[%emt 0:00:44]} 39. Qf4+ {[%emt 0:01:42]} Kh5 {[%emt 0:00:22]} 40. Qd6 {[%emt 0:00:00]} Qf7+ {[%emt 0:00:00]} 41. b3 {[%emt 0:04:11]} Qe6 {[%emt 0:07:42]} 42. Qd4 {[%emt 0:06:42]} Qe5 {[%emt 0:05:33]} 43. Qd8 {[%emt 0:02:42]} f5 {[%emt 0:05:43]} 44. Qf8 {[%emt 0:06:08]} Kxh4 {[%emt 0:04:46]} 45. Rxf5 {[%emt 0:02:09]} Qg7 {[%emt 0:00:51]} 46. Qd8 {[%emt 0:03:33]} Qh7 {[%emt 0:03:02]} 47. Rf2 {[%emt 0:02:55]} Kg3 {[%emt 0:01:54]} 48. Qd2 {[%emt 0:02:02]} Qe4 {[%emt 0:00:37]} 49. Rf1 {[%emt 0:02:50]} Qe3 {[%emt 0:01:02]} 50. Qd6+ {[%emt 0:01:32]} Kg2 {[%emt 0:00:34]} 51. Rd1 {[%emt 0:00:06]} Qf3 {[%emt 0:01:17]} 52. Qd4 {[%emt 0:01:48]} g3 {[%emt 0:01:59]} 53. Qg1+ {[%emt 0:00:27]} Kh3 {[%emt 0:00:03]} 54. Rd3 {[%emt 0:00:53]} Qg2 {[%emt 0:00:43]} 55. Qc5 {[%emt 0:00:27]} Re5 {[%emt 0:00:50]} 56. Qc3 {[%emt 0:00:56]} Kh2 {[%emt 0:01:02]} 57. Rd2 {[%emt 0:00:27]} Re2 {[%emt 0:00:05]} 58. Qh8+ {[%emt 0:00:02]} Kg1 {[%emt 0:00:27]} 59. Rd1+ {[%emt 0:00:18]} Qf1 {[%emt 0:00:36]} 60. Qd4+ {[%emt 0:01:00]} Rf2 {[%emt 0:00:04]} 61. Rxf1+ {[%emt 0:00:36]} Kxf1 {[%emt 0:00:05]} 62. Qd3+ {[%emt 0:00:23]} Kg2 {[%emt 0:00:10]} 63. Qe4+ {[%emt 0:00:07]} Kf1 {[%emt 0:00:39]} 64. Qh1+ {[%emt 0:00:40]} Ke2 {[%emt 0:00:06]} 65. Qe4+ {[%emt 0:00:08]} Kf1 {[%emt 0:00:08]} 66. Qh1+ {[%emt 0:00:45]} Ke2 {[%emt 0:00:04]} 67. Qe4+ 1/2-1/2

[Event "3rd Memorial Warakomska 2019"]
[Site "Suwalki"]
[Date "2019.08.09"]
[Round "6.40"]
[White "Balinski, Damian"]
[Black "Shpanko, Nadiia"]
[Result "1/2-1/2"]
[ECO "A14"]
[WhiteElo "2176"]
[BlackElo "2132"]
[Annotator "NA"]
[PlyCount "144"]
[EventDate "2019.08.05"]
[EventType "swiss"]
[EventCountry "POL"]
[SourceTitle "playchess.com"]
[Source "ChessBase"]
[SourceQuality "1"]
[TimeControl "40/5400+30:1800+30"]

1. c4 {[%emt 0:00:00]} e6 {[%emt 0:00:00]} 2. g3 {[%emt 0:00:00]} d5 {[%emt 0:00:00]} 3. Bg2 {[%emt 0:00:00]} Nf6 {[%emt 0:00:12]} 4. Nf3 {[%emt 0:00:00]} Be7 {[%emt 0:00:59]} 5. O-O {[%emt 0:00:03]} O-O {[%emt 0:00:21]} 6. b3 {[%emt 0:00:14]} c5 {[%emt 0:01:43]} 7. e3 {[%emt 0:01:26]} b6 {[%emt 0:01:11]} 8. Bb2 {[%emt 0:01:24]} Bb7 {[%emt 0:00:34]} 9. Qe2 {[%emt 0:01:02]} Nc6 {[%emt 0:04:07]} 10. Rd1 {[%emt 0:02:00]} Qc7 {[%emt 0:09:02]} 11. Nc3 {[%emt 0:00:52]} dxc4 {[%emt 0:02:42]} 12. bxc4 {[%emt 0:00:03]} Rad8 {[%emt 0:01:28]} 13. Rac1 {[%emt 0:09:15]} Rd7 {[%emt 0:11:56]} 14. d4 {[%emt 0:31:07]} Rfd8 {[%emt 0:02:40]} 15. d5 {[%emt 0:02:46]} exd5 {[%emt 0:07:11]} 16. Bh3 {[%emt 0:00:25]} dxc4 {[%emt 0:02:55]} 17. Bxd7 {[%emt 0:00:08]} Rxd7 {[%emt 0:00:10]} 18. Qxc4 {[%emt 0:07:42]} Na5 {[%emt 0:05:49]} 19. Qe2 {[%emt 0:00:22]} Qc6 {[%emt 0:04:53]} 20. Rxd7 {[%emt 0:03:38]} Nxd7 {[%emt 0:00:50]} 21. e4 {[%emt 0:00:19]} Qe6 {[%emt 0:01:06]} 22. Rd1 {[%emt 0:05:14]} h6 {[%emt 0:04:20]} 23. Nd5 {[%emt 0:04:15]} Bxd5 {[%emt 0:06:24]} 24. Rxd5 {[%emt 0:00:02]} Nf6 {[%emt 0:00:30]} 25. Re5 {[%emt 0:10:10]} Qd7 {[%emt 0:00:29]} 26. Qd2 {[%emt 0:00:24]} Qb7 {[%emt 0:01:50]} 27. Qc3 {[%emt 0:00:42]} Kf8 {[%emt 0:01:17]} 28. Rf5 {[%emt 0:07:44]} Qxe4 {[%emt 0:01:37]} 29. Re5 {[%emt 0:02:32]} Qb1+ {[%emt 0:04:37]} 30. Qe1 {[%emt 0:00:29]} Qxe1+ {[%emt 0:00:05]} 31. Rxe1 {[%emt 0:00:05]} Nc4 {[%emt 0:01:51]} 32. Ba1 {[%emt 0:00:33]} b5 {[%emt 0:00:54]} 33. Ne5 {[%emt 0:01:59]} Nxe5 {[%emt 0:00:12]} 34. Bxe5 {[%emt 0:00:01]} a5 {[%emt 0:00:59]} 35. a4 {[%emt 0:04:51]} b4 {[%emt 0:00:23]} 36. Rc1 {[%emt 0:01:34]} Nd5 {[%emt 0:01:05]} 37. Kf1 {[%emt 0:01:31]} f6 {[%emt 0:02:31]} 38. Bb8 {[%emt 0:02:17]} Nb6 {[%emt 0:01:08]} 39. Bc7 {[%emt 0:00:26]} Nxa4 {[%emt 0:01:11]} 40. Bxa5 {[%emt 0:00:00]} Nc3 {[%emt 0:00:00]} 41. Ke1 {[%emt 0:01:57]} Ke8 {[%emt 0:12:20]} 42. Kd2 {[%emt 0:01:12]} Kd7 {[%emt 0:02:02]} 43. Kd3 {[%emt 0:00:56]} Kc6 {[%emt 0:00:37]} 44. Re1 {[%emt 0:07:30]} Bd6 {[%emt 0:01:37]} 45. Bd8 {[%emt 0:10:46]} Kb5 {[%emt 0:06:59]} 46. Re6 {[%emt 0:04:15]} c4+ {[%emt 0:00:17]} 47. Kd2 Bc5 {[%emt 0:01:34]} 48. Be7 {[%emt 0:02:48]} Bd4 {[%emt 0:02:06]} 49. Bf8 {[%emt 0:02:33]} b3 {[%emt 0:00:55]} 50. Bxg7 {[%emt 0:00:59]} b2 {[%emt 0:00:12]} 51. Re1 {[%emt 0:00:26]} b1=Q {[%emt 0:00:06]} 52. Rxb1+ {[%emt 0:00:06]} Nxb1+ {[%emt 0:00:04]} 53. Kc1 {[%emt 0:00:11]} Nc3 {[%emt 0:02:00]} 54. Bxh6 {[%emt 0:00:09]} Bxf2 {[%emt 0:00:08]} 55. Kd2 {[%emt 0:00:47]} Ne4+ {[%emt 0:00:43]} 56. Ke2 {[%emt 0:00:33]} Bd4 {[%emt 0:00:48]} 57. Bc1 {[%emt 0:01:49]} Bg1 {[%emt 0:01:42]} 58. h4 {[%emt 0:02:20]} Nxg3+ {[%emt 0:00:16]} 59. Kf3 {[%emt 0:00:33]} Nf5 {[%emt 0:00:08]} 60. h5 {[%emt 0:01:14]} Bh2 {[%emt 0:02:52]} 61. Kg4 {[%emt 0:00:46]} Ne7 {[%emt 0:00:15]} 62. h6 {[%emt 0:00:28]} Be5 {[%emt 0:00:13]} 63. h7 {[%emt 0:00:48]} f5+ {[%emt 0:00:12]} 64. Kg5 {[%emt 0:00:05]} c3 {[%emt 0:00:35]} 65. Ba3 {[%emt 0:01:06]} c2 {[%emt 0:00:09]} 66. Bc1 {[%emt 0:00:12]} Kc4 {[%emt 0:00:15]} 67. Kh5 {[%emt 0:00:40]} Kd3 {[%emt 0:00:20]} 68. Bf4 {[%emt 0:00:34]} Bh8 {[%emt 0:00:05]} 69. Bg5 {[%emt 0:00:30]} Ke2 {[%emt 0:00:11]} 70. Kh4 {[%emt 0:00:33]} Kd1 {[%emt 0:00:09]} 71. Kg3 {[%emt 0:00:20]} c1=Q {[%emt 0:00:06]} 72. Bxc1 {[%emt 0:00:04]} Kxc1 {[%emt 0:00:05]} 1/2-1/2

[Event "3rd Memorial Warakomska 2019"]
[Site "Suwalki"]
[Date "2019.08.09"]
[Round "6.41"]
[White "Praczukowski, Stanislaw"]
[Black "Zakrzewski, Marek"]
[Result "0-1"]
[ECO "B47"]
[WhiteElo "2166"]
[BlackElo "2311"]
[Annotator "NA"]
[PlyCount "82"]
[EventDate "2019.08.05"]
[EventType "swiss"]
[EventCountry "POL"]
[SourceTitle "playchess.com"]
[Source "ChessBase"]
[SourceQuality "1"]
[TimeControl "40/5400+30:1800+30"]

1. e4 {[%emt 0:00:00]} c5 {[%emt 0:00:00]} 2. Nf3 {[%emt 0:00:00]} e6 {[%emt 0:00:00]} 3. d4 {[%emt 0:00:00]} cxd4 {[%emt 0:00:00]} 4. Nxd4 {[%emt 0:00:00]} Nc6 {[%emt 0:00:00]} 5. Nc3 {[%emt 0:00:18]} Qc7 {[%emt 0:00:00]} 6. Be2 {[%emt 0:00:58]} a6 {[%emt 0:00:15]} 7. O-O {[%emt 0:00:53]} Nf6 {[%emt 0:00:11]} 8. Be3 {[%emt 0:00:59]} Bb4 {[%emt 0:00:08]} 9. Nxc6 {[%emt 0:00:49]} bxc6 {[%emt 0:00:08]} 10. Qd4 {[%emt 0:00:15]} c5 {[%emt 0:00:16]} 11. Qc4 {[%emt 0:00:08]} O-O {[%emt 0:00:49]} 12. Bf3 {[%emt 0:08:06]} d6 {[%emt 0:01:12]} 13. a3 {[%emt 0:09:13]} Bxc3 {[%emt 0:03:59]} 14. Qxc3 {[%emt 0:00:46]} Bb7 {[%emt 0:00:18]} 15. e5 {[%emt 0:07:08]} dxe5 {[%emt 0:00:09]} 16. Qxc5 {[%emt 0:02:35]} Rac8 {[%emt 0:00:09]} 17. Qxc7 {[%emt 0:01:21]} Rxc7 {[%emt 0:05:15]} 18. Bxb7 {[%emt 0:11:05]} Rxb7 {[%emt 0:00:07]} 19. Rab1 {[%emt 0:05:25]} Rc8 {[%emt 0:02:28]} 20. Rfc1 {[%emt 0:02:17]} Rbc7 {[%emt 0:00:15]} 21. c3 {[%emt 0:00:46]} Nd5 {[%emt 0:00:06]} 22. Kf1 {[%emt 0:02:08]} f5 {[%emt 0:09:06]} 23. g3 {[%emt 0:02:41]} Kf7 {[%emt 0:00:58]} 24. Ke2 {[%emt 0:00:43]} Rc4 {[%emt 0:05:56]} 25. Bd2 {[%emt 0:03:07]} a5 {[%emt 0:03:02]} 26. b4 {[%emt 0:02:56]} a4 {[%emt 0:09:56]} 27. Rb2 {[%emt 0:03:46]} Ke7 {[%emt 0:05:25]} 28. Rbc2 {[%emt 0:02:39]} e4 {[%emt 0:03:34]} 29. Kf1 {[%emt 0:02:29]} e5 {[%emt 0:03:06]} 30. Be3 {[%emt 0:01:02]} Ke6 {[%emt 0:01:24]} 31. Bc5 {[%emt 0:00:34]} f4 {[%emt 0:04:33]} 32. Ke2 {[%emt 0:01:34]} g5 {[%emt 0:04:40]} 33. f3 {[%emt 0:01:54]} Nf6 {[%emt 0:14:05]} 34. Rd2 {[%emt 0:05:12]} exf3+ {[%emt 0:00:35]} 35. Kxf3 {[%emt 0:01:04]} e4+ {[%emt 0:00:19]} 36. Ke2 {[%emt 0:02:11]} Nd5 {[%emt 0:00:50]} 37. Rdc2 {[%emt 0:01:27]} Nc7 {[%emt 0:03:29]} 38. gxf4 {[%emt 0:00:21]} gxf4 {[%emt 0:00:07]} 39. Rg1 {[%emt 0:00:18]} Nb5 {[%emt 0:01:25]} 40. Rg7 {[%emt 0:00:00]} Rc7 {[%emt 0:00:00]} 41. Rg4 {[%emt 0:03:23]} Kf5 {[%emt 0:06:34]} 0-1